[Event "Titled Tuesday Blitz November 14 Early 2023"]
[White "Chinguun, Sumiya"]
[Black "Santos Flores, Alberto"]
[WhiteFideId "4902572"]
[BlackFideId "3601234"]
[WhiteElo "2699"]
[BlackElo "2565"]
[Result "1/2-1/2"]
[Round "10"]
[TimeControl "180+1"]
[Date "2023.11.14"]
[WhiteClock "0:00:12"]
[BlackClock "0:00:07"]
[Board "49"]

1. e4 {[%clk 0:03:00]}  e6 {[%clk 0:03:00]} 2. d4 {[%clk 0:03:00]}  d5 {[%clk 0:03:00]} 3. Nc3 {[%clk 0:03:01]}  Nf6 {[%clk 0:03:00]} 4. e5 {[%clk 0:03:01]}  Nfd7 {[%clk 0:03:00]} 5. f4 {[%clk 0:03:01]}  c5 {[%clk 0:03:01]} 6. Nf3 {[%clk 0:03:02]}  Nc6 {[%clk 0:03:01]} 7. Ne2 {[%clk 0:03:01]}  Be7 {[%clk 0:02:31]} 8. c3 {[%clk 0:03:01]}  b5 {[%clk 0:02:30]} 9. g3 {[%clk 0:03:00]}  a5 {[%clk 0:02:30]} 10. Bg2 {[%clk 0:03:00]}  b4 {[%clk 0:02:30]} 11. O-O {[%clk 0:03:00]}  Ba6 {[%clk 0:02:29]} 12. Be3 {[%clk 0:02:59]}  a4 {[%clk 0:02:23]} 13. a3 {[%clk 0:02:59]}  bxc3 {[%clk 0:02:22]} 14. bxc3 {[%clk 0:02:58]}  cxd4 {[%clk 0:02:22]} 15. cxd4 {[%clk 0:02:57]}  O-O {[%clk 0:02:19]} 16. g4 {[%clk 0:02:57]}  f5 {[%clk 0:02:12]} 17. gxf5 {[%clk 0:02:56]}  Rxf5 {[%clk 0:02:12]} 18. Bh3 {[%clk 0:02:56]}  Qf8 {[%clk 0:02:05]} 19. Qc2 {[%clk 0:02:49]}  Rc8 {[%clk 0:01:58]} 20. Bxf5 {[%clk 0:02:49]}  Nxd4 {[%clk 0:01:54]} 21. Bxh7+ {[%clk 0:02:47]}  Kh8 {[%clk 0:01:54]} 22. Nfxd4 {[%clk 0:02:47]}  Rxc2 {[%clk 0:01:49]} 23. Bxc2 {[%clk 0:02:47]}  Nc5 {[%clk 0:01:45]} 24. Rf3 {[%clk 0:02:44]}  Kg8 {[%clk 0:01:36]} 25. Ng3 {[%clk 0:02:41]}  Qc8 {[%clk 0:01:27]} 26. f5 {[%clk 0:02:41]}  exf5 {[%clk 0:01:20]} 27. Ngxf5 {[%clk 0:02:41]}  Bf8 {[%clk 0:01:20]} 28. Raf1 {[%clk 0:02:34]}  Bxf1 {[%clk 0:01:17]} 29. Rxf1 {[%clk 0:02:34]}  Ne6 {[%clk 0:01:14]} 30. Bxa4 {[%clk 0:02:19]}  Nxd4 {[%clk 0:01:10]} 31. Bxd4 {[%clk 0:02:16]}  Qa6 {[%clk 0:01:07]} 32. Bd7 {[%clk 0:02:11]}  Qxa3 {[%clk 0:01:02]} 33. e6 {[%clk 0:02:06]}  Bc5 {[%clk 0:00:57]} 34. Bxc5 {[%clk 0:02:03]}  Qxc5+ {[%clk 0:00:57]} 35. Rf2 {[%clk 0:01:58]}  Qc7 {[%clk 0:00:55]} 36. Rf3 {[%clk 0:01:53]}  g6 {[%clk 0:00:48]} 37. Ne7+ {[%clk 0:01:52]}  Kg7 {[%clk 0:00:47]} 38. Kg2 {[%clk 0:01:31]}  Qc2+ {[%clk 0:00:45]} 39. Rf2 {[%clk 0:01:30]}  Qc5 {[%clk 0:00:45]} 40. Nc8 {[%clk 0:01:20]}  d4 {[%clk 0:00:42]} 41. Rf3 {[%clk 0:01:11]}  Qd5 {[%clk 0:00:41]} 42. Ne7 {[%clk 0:01:09]}  Qd6 {[%clk 0:00:39]} 43. Rf7+ {[%clk 0:00:49]}  Kh6 {[%clk 0:00:36]} 44. Ng8+ {[%clk 0:00:47]}  Kg5 {[%clk 0:00:36]} 45. h4+ {[%clk 0:00:40]}  Kxh4 {[%clk 0:00:34]} 46. e7 {[%clk 0:00:39]}  Qd5+ {[%clk 0:00:27]} 47. Rf3 {[%clk 0:00:38]}  Qxd7 {[%clk 0:00:24]} 48. Rf4+ {[%clk 0:00:32]}  Kg5 {[%clk 0:00:24]} 49. Re4 {[%clk 0:00:32]}  Qe8 {[%clk 0:00:18]} 50. Re5+ {[%clk 0:00:32]}  Kf4 {[%clk 0:00:18]} 51. Re6 {[%clk 0:00:28]}  Kf5 {[%clk 0:00:17]} 52. Re1 {[%clk 0:00:23]}  d3 {[%clk 0:00:13]} 53. Rf1+ {[%clk 0:00:20]}  Kg5 {[%clk 0:00:13]} 54. Rf8 {[%clk 0:00:12]}  Qc6+ {[%clk 0:00:12]} 55. Kg3 {[%clk 0:00:12]}  Qd6+ {[%clk 0:00:09]} 56. Kh3 {[%clk 0:00:11]}  Qe6+ {[%clk 0:00:09]} 57. Kg3 {[%clk 0:00:11]}  Qe3+ {[%clk 0:00:09]} 58. Kg2 {[%clk 0:00:11]}  Qe4+ {[%clk 0:00:08]} 59. Kg3 {[%clk 0:00:11]}  Qe3+ {[%clk 0:00:08]} 60. Kg2 {[%clk 0:00:12]}  Qe4+ {[%clk 0:00:08]} 61. Kg3 {[%clk 0:00:12]}  Qe3+ {[%clk 0:00:07]} 1/2-1/2


[Site "https://www.chess.com"]

[Event "Titled Tuesday Blitz November 14 Early 2023"]
[White "Hasangatin, Ramil"]
[Black "Novik, Maxim"]
[WhiteFideId "4122160"]
[BlackFideId "4102924"]
[WhiteElo "2689"]
[BlackElo "2554"]
[Result "1-0"]
[Round "10"]
[TimeControl "180+1"]
[Date "2023.11.14"]
[WhiteClock "0:00:05"]
[BlackClock "0:00:00"]
[Board "50"]

1. e4 {[%clk 0:03:00]}  c6 {[%clk 0:03:00]} 2. Nf3 {[%clk 0:03:00]}  d5 {[%clk 0:03:01]} 3. d3 {[%clk 0:03:01]}  Nd7 {[%clk 0:03:00]} 4. g3 {[%clk 0:03:00]}  e5 {[%clk 0:03:00]} 5. Bg2 {[%clk 0:03:00]}  dxe4 {[%clk 0:03:00]} 6. dxe4 {[%clk 0:02:59]}  Ngf6 {[%clk 0:03:01]} 7. Qe2 {[%clk 0:02:58]}  Bc5 {[%clk 0:03:01]} 8. O-O {[%clk 0:02:58]}  O-O {[%clk 0:03:01]} 9. a3 {[%clk 0:02:58]}  a5 {[%clk 0:03:01]} 10. Ne1 {[%clk 0:02:58]}  b6 {[%clk 0:03:01]} 11. Nd3 {[%clk 0:02:57]}  Ba6 {[%clk 0:03:01]} 12. Be3 {[%clk 0:02:51]}  Qc7 {[%clk 0:02:57]} 13. Nc3 {[%clk 0:02:47]}  Rfd8 {[%clk 0:02:54]} 14. Rfd1 {[%clk 0:02:46]}  Bd4 {[%clk 0:02:49]} 15. Qe1 {[%clk 0:02:44]}  Bxc3 {[%clk 0:02:47]} 16. Qxc3 {[%clk 0:02:44]}  c5 {[%clk 0:02:44]} 17. Bg5 {[%clk 0:02:39]}  Bb7 {[%clk 0:02:44]} 18. Bxf6 {[%clk 0:02:38]}  Nxf6 {[%clk 0:02:42]} 19. Qxe5 {[%clk 0:02:37]}  Qxe5 {[%clk 0:02:38]} 20. Nxe5 {[%clk 0:02:38]}  Bxe4 {[%clk 0:02:37]} 21. Bxe4 {[%clk 0:02:36]}  Nxe4 {[%clk 0:02:36]} 22. Nc6 {[%clk 0:02:36]}  Rxd1+ {[%clk 0:02:33]} 23. Rxd1 {[%clk 0:02:37]}  Kf8 {[%clk 0:02:33]} 24. a4 {[%clk 0:02:30]}  Nf6 {[%clk 0:02:28]} 25. Rd6 {[%clk 0:02:27]}  Re8 {[%clk 0:02:16]} 26. Kf1 {[%clk 0:02:23]}  Re6 {[%clk 0:02:13]} 27. Rxe6 {[%clk 0:02:20]}  fxe6 {[%clk 0:02:13]} 28. Ne5 {[%clk 0:02:19]}  Ke7 {[%clk 0:02:09]} 29. Nc4 {[%clk 0:02:15]}  Nd7 {[%clk 0:02:06]} 30. Ke2 {[%clk 0:02:13]}  e5 {[%clk 0:02:06]} 31. Ke3 {[%clk 0:02:07]}  Ke6 {[%clk 0:02:06]} 32. Ke4 {[%clk 0:02:06]}  Nf6+ {[%clk 0:02:06]} 33. Kd3 {[%clk 0:02:06]}  Nd7 {[%clk 0:02:06]} 34. f3 {[%clk 0:02:05]}  h6 {[%clk 0:02:05]} 35. h4 {[%clk 0:02:04]}  g5 {[%clk 0:01:59]} 36. h5 {[%clk 0:02:01]}  Nf6 {[%clk 0:01:48]} 37. g4 {[%clk 0:01:53]}  e4+ {[%clk 0:01:48]} 38. Ke3 {[%clk 0:01:52]}  exf3 {[%clk 0:01:47]} 39. Kxf3 {[%clk 0:01:53]}  Nd5 {[%clk 0:01:45]} 40. c3 {[%clk 0:01:50]}  Kd7 {[%clk 0:01:39]} 41. Ke4 {[%clk 0:01:50]}  Ke6 {[%clk 0:01:39]} 42. Kf3 {[%clk 0:01:20]}  Kf6 {[%clk 0:01:38]} 43. Nd6 {[%clk 0:01:12]}  Ne7 {[%clk 0:01:20]} 44. Ke4 {[%clk 0:01:11]}  Ke6 {[%clk 0:01:20]} 45. Nc4 {[%clk 0:01:05]}  Nd5 {[%clk 0:01:19]} 46. Ne3 {[%clk 0:01:05]}  Nf6+ {[%clk 0:00:59]} 47. Kf3 {[%clk 0:00:58]}  Nd7 {[%clk 0:00:59]} 48. Nf5 {[%clk 0:00:54]}  Ne5+ {[%clk 0:00:58]} 49. Kg3 {[%clk 0:00:54]}  Nf7 {[%clk 0:00:58]} 50. Kf2 {[%clk 0:00:49]}  Ke5 {[%clk 0:00:58]} 51. Ke3 {[%clk 0:00:49]}  Kd5 {[%clk 0:00:55]} 52. b3 {[%clk 0:00:36]}  c4 {[%clk 0:00:52]} 53. b4 {[%clk 0:00:35]}  Ke5 {[%clk 0:00:45]} 54. b5 {[%clk 0:00:26]}  Kd5 {[%clk 0:00:44]} 55. Ne7+ {[%clk 0:00:19]}  Ke6 {[%clk 0:00:31]} 56. Nc8 {[%clk 0:00:18]}  Ne5 {[%clk 0:00:31]} 57. Nxb6 {[%clk 0:00:18]}  Nxg4+ {[%clk 0:00:31]} 58. Kd4 {[%clk 0:00:15]}  Nf6 {[%clk 0:00:29]} 59. Nxc4 {[%clk 0:00:14]}  g4 {[%clk 0:00:28]} 60. Ne3 {[%clk 0:00:14]}  g3 {[%clk 0:00:28]} 61. c4 {[%clk 0:00:15]}  Nxh5 {[%clk 0:00:28]} 62. c5 {[%clk 0:00:15]}  Nf4 {[%clk 0:00:27]} 63. b6 {[%clk 0:00:15]}  Kd7 {[%clk 0:00:27]} 64. Ke5 {[%clk 0:00:14]}  g2 {[%clk 0:00:27]} 65. Nxg2 {[%clk 0:00:14]}  Nxg2 {[%clk 0:00:27]} 66. b7 {[%clk 0:00:09]}  Kc7 {[%clk 0:00:27]} 67. c6 {[%clk 0:00:10]}  Ne3 {[%clk 0:00:26]} 68. Ke6 {[%clk 0:00:09]}  Nc4 {[%clk 0:00:25]} 69. Kd5 {[%clk 0:00:07]}  Nb6+ {[%clk 0:00:25]} 70. Kc5 {[%clk 0:00:07]}  Nxa4+ {[%clk 0:00:26]} 71. Kb5 {[%clk 0:00:07]}  Nc3+ {[%clk 0:00:25]} 72. Ka6 {[%clk 0:00:07]}  Kb8 {[%clk 0:00:20]} 73. c7+ {[%clk 0:00:07]}  Kxc7 {[%clk 0:00:20]} 74. Ka7 {[%clk 0:00:08]}  Nb5+ {[%clk 0:00:20]} 75. Ka8 {[%clk 0:00:07]}  a4 {[%clk 0:00:16]} 76. b8=Q+ {[%clk 0:00:07]}  Kc6 {[%clk 0:00:16]} 77. Qe8+ {[%clk 0:00:07]}  Kc5 {[%clk 0:00:16]} 78. Qe5+ {[%clk 0:00:07]}  Kb4 {[%clk 0:00:16]} 79. Qe4+ {[%clk 0:00:07]}  Kb3 {[%clk 0:00:16]} 80. Qd5+ {[%clk 0:00:06]}  Kb4 {[%clk 0:00:16]} 81. Kb7 {[%clk 0:00:05]}  a3 {[%clk 0:00:16]} 82. Kb6 {[%clk 0:00:05]}  Nc3 {[%clk 0:00:16]} 83. Qa5+ {[%clk 0:00:05]}  Kb3 {[%clk 0:00:11]} 84. Kc5 {[%clk 0:00:05]}  a2 {[%clk 0:00:00]} 85. Qb4+ {[%clk 0:00:05]} 1-0


[Site "https://www.chess.com"]

[Event "Titled Tuesday Blitz November 14 Early 2023"]
[White "Pourkashiyan, Atousa"]
[Black "Hristodoulou, Panagiotis"]
[WhiteFideId "12502014"]
[BlackFideId "4214340"]
[WhiteElo "2543"]
[BlackElo "2656"]
[Result "0-1"]
[Round "10"]
[TimeControl "180+1"]
[Date "2023.11.14"]
[WhiteClock "0:00:00"]
[BlackClock "0:00:39"]
[Board "52"]

1. e4 {[%clk 0:02:54]}  e5 {[%clk 0:03:00]} 2. Nf3 {[%clk 0:02:54]}  Nc6 {[%clk 0:03:00]} 3. Bb5 {[%clk 0:02:54]}  g6 {[%clk 0:03:00]} 4. c3 {[%clk 0:02:52]}  a6 {[%clk 0:02:59]} 5. Ba4 {[%clk 0:02:49]}  Bg7 {[%clk 0:02:59]} 6. O-O {[%clk 0:02:49]}  Nge7 {[%clk 0:02:59]} 7. d4 {[%clk 0:02:49]}  exd4 {[%clk 0:02:58]} 8. cxd4 {[%clk 0:02:49]}  O-O {[%clk 0:02:59]} 9. Nc3 {[%clk 0:02:48]}  d6 {[%clk 0:02:55]} 10. d5 {[%clk 0:02:46]}  Na5 {[%clk 0:02:51]} 11. Re1 {[%clk 0:02:26]}  b5 {[%clk 0:02:50]} 12. Bc2 {[%clk 0:02:25]}  Bb7 {[%clk 0:02:50]} 13. Bf4 {[%clk 0:02:13]}  Rc8 {[%clk 0:02:46]} 14. Nd4 {[%clk 0:01:58]}  Re8 {[%clk 0:02:40]} 15. b4 {[%clk 0:01:43]}  c5 {[%clk 0:02:25]} 16. dxc6 {[%clk 0:01:38]}  Naxc6 {[%clk 0:02:24]} 17. Nxc6 {[%clk 0:01:34]}  Rxc6 {[%clk 0:02:13]} 18. Ne2 {[%clk 0:00:46]}  Bxa1 {[%clk 0:01:40]} 19. Qxa1 {[%clk 0:00:47]}  Rxc2 {[%clk 0:01:40]} 20. Bh6 {[%clk 0:00:47]}  Nf5 {[%clk 0:01:41]} 21. exf5 {[%clk 0:00:46]}  Re5 {[%clk 0:01:24]} 22. Ng3 {[%clk 0:00:20]}  Qb6 {[%clk 0:01:02]} 23. Rf1 {[%clk 0:00:18]}  Qc6 {[%clk 0:00:57]} 24. f3 {[%clk 0:00:16]}  Qc3 {[%clk 0:00:45]} 25. Qd1 {[%clk 0:00:00]}  Qb2 {[%clk 0:00:39]} 0-1


[Site "https://www.chess.com"]

[Event "Titled Tuesday Blitz November 14 Early 2023"]
[White "DavitSantryan02"]
[Black "GatoRojo150"]
[WhiteElo "2136"]
[BlackElo "2650"]
[Result "1-0"]
[Round "10"]
[TimeControl "180+1"]
[Date "2023.11.14"]
[WhiteClock "0:00:58"]
[BlackClock "0:00:03"]
[Board "53"]

1. Nf3 {[%clk 0:02:51]}  d5 {[%clk 0:02:59]} 2. g3 {[%clk 0:02:52]}  Nc6 {[%clk 0:02:59]} 3. d4 {[%clk 0:02:51]}  Bg4 {[%clk 0:02:59]} 4. Bg2 {[%clk 0:02:51]}  Qd7 {[%clk 0:02:58]} 5. h3 {[%clk 0:02:48]}  Bxf3 {[%clk 0:02:57]} 6. Bxf3 {[%clk 0:02:49]}  Nf6 {[%clk 0:02:56]} 7. Nc3 {[%clk 0:02:47]}  O-O-O {[%clk 0:02:50]} 8. a3 {[%clk 0:02:46]}  e5 {[%clk 0:02:48]} 9. Bg5 {[%clk 0:02:45]}  exd4 {[%clk 0:02:43]} 10. Bxf6 {[%clk 0:02:44]}  dxc3 {[%clk 0:02:26]} 11. Bxc3 {[%clk 0:02:37]}  Kb8 {[%clk 0:02:15]} 12. Qd3 {[%clk 0:02:34]}  f6 {[%clk 0:02:02]} 13. O-O-O {[%clk 0:02:31]}  Bc5 {[%clk 0:01:59]} 14. e3 {[%clk 0:02:28]}  Ne7 {[%clk 0:01:49]} 15. g4 {[%clk 0:02:18]}  c6 {[%clk 0:01:49]} 16. g5 {[%clk 0:02:15]}  fxg5 {[%clk 0:01:44]} 17. Rhg1 {[%clk 0:02:13]}  h6 {[%clk 0:01:44]} 18. Bxg7 {[%clk 0:02:12]}  Qxh3 {[%clk 0:01:10]} 19. Bxh8 {[%clk 0:02:03]}  Rxh8 {[%clk 0:01:09]} 20. Rg3 {[%clk 0:01:53]}  Qh2 {[%clk 0:00:53]} 21. Qc3 {[%clk 0:01:46]}  Re8 {[%clk 0:00:38]} 22. Qxc5 {[%clk 0:01:43]}  Qxf2 {[%clk 0:00:38]} 23. Qd6+ {[%clk 0:01:39]}  Ka8 {[%clk 0:00:36]} 24. Bh5 {[%clk 0:01:40]}  Nf5 {[%clk 0:00:31]} 25. Qd7 {[%clk 0:01:34]}  Rb8 {[%clk 0:00:28]} 26. Rf3 {[%clk 0:01:34]}  Qh4 {[%clk 0:00:24]} 27. Rxf5 {[%clk 0:01:25]}  Qxh5 {[%clk 0:00:24]} 28. Rdf1 {[%clk 0:01:22]}  Qe2 {[%clk 0:00:19]} 29. Qe7 {[%clk 0:01:08]}  a6 {[%clk 0:00:16]} 30. b3 {[%clk 0:01:04]}  d4 {[%clk 0:00:15]} 31. Rf8 {[%clk 0:01:00]}  Qxe3+ {[%clk 0:00:06]} 32. Qxe3 {[%clk 0:01:00]}  dxe3 {[%clk 0:00:07]} 33. Rxb8+ {[%clk 0:00:56]}  Kxb8 {[%clk 0:00:08]} 34. Rh1 {[%clk 0:00:56]}  Kc7 {[%clk 0:00:07]} 35. Rxh6 {[%clk 0:00:57]}  Kb6 {[%clk 0:00:07]} 36. Rg6 {[%clk 0:00:57]}  a5 {[%clk 0:00:06]} 37. Rxg5 {[%clk 0:00:57]}  e2 {[%clk 0:00:07]} 38. Kd2 {[%clk 0:00:57]}  e1=Q+ {[%clk 0:00:05]} 39. Kxe1 {[%clk 0:00:57]}  a4 {[%clk 0:00:05]} 40. bxa4 {[%clk 0:00:58]}  Ka6 {[%clk 0:00:05]} 41. Kd2 {[%clk 0:00:58]}  Kb6 {[%clk 0:00:05]} 42. Kc3 {[%clk 0:00:59]}  Ka6 {[%clk 0:00:06]} 43. Kb4 {[%clk 0:00:59]}  Kb6 {[%clk 0:00:06]} 44. Rg8 {[%clk 0:00:59]}  Kc7 {[%clk 0:00:06]} 45. a5 {[%clk 0:00:58]}  Kd6 {[%clk 0:00:06]} 46. Rg6+ {[%clk 0:00:58]}  Kc7 {[%clk 0:00:06]} 47. Kc5 {[%clk 0:00:59]}  Kb8 {[%clk 0:00:06]} 48. Kb6 {[%clk 0:00:59]}  Kc8 {[%clk 0:00:06]} 49. Rd6 {[%clk 0:00:58]}  c5 {[%clk 0:00:03]} 50. c4 {[%clk 0:00:58]} 1-0


[Site "https://www.chess.com"]

[Event "Titled Tuesday Blitz November 14 Early 2023"]
[White "ChainedDowntohell"]
[Black "Kopylov, Alexander A."]
[BlackFideId "4164857"]
[WhiteElo "2554"]
[BlackElo "2790"]
[Result "1-0"]
[Round "10"]
[TimeControl "180+1"]
[Date "2023.11.14"]
[WhiteClock "0:02:00"]
[BlackClock "0:01:33"]
[Board "56"]

1. d4 {[%clk 0:03:00]}  Nf6 {[%clk 0:02:59]} 2. c4 {[%clk 0:03:00]}  e6 {[%clk 0:03:00]} 3. Nf3 {[%clk 0:03:00]}  d5 {[%clk 0:03:00]} 4. Nc3 {[%clk 0:03:00]}  Bb4 {[%clk 0:03:00]} 5. cxd5 {[%clk 0:02:59]}  exd5 {[%clk 0:02:59]} 6. Bf4 {[%clk 0:03:00]}  O-O {[%clk 0:02:59]} 7. e3 {[%clk 0:03:00]}  a6 {[%clk 0:02:57]} 8. Bd3 {[%clk 0:02:59]}  b5 {[%clk 0:02:57]} 9. O-O {[%clk 0:02:56]}  Bb7 {[%clk 0:02:57]} 10. Ne5 {[%clk 0:02:56]}  Nbd7 {[%clk 0:02:57]} 11. Qf3 {[%clk 0:02:52]}  c5 {[%clk 0:02:55]} 12. Bg5 {[%clk 0:02:45]}  Bxc3 {[%clk 0:02:23]} 13. Nxd7 {[%clk 0:02:34]}  Qxd7 {[%clk 0:02:02]} 14. Bxf6 {[%clk 0:02:33]}  Bxb2 {[%clk 0:02:02]} 15. Bxh7+ {[%clk 0:02:05]}  Kxh7 {[%clk 0:01:41]} 16. Qh5+ {[%clk 0:02:03]}  Kg8 {[%clk 0:01:41]} 17. Qg5 {[%clk 0:02:03]}  Qg4 {[%clk 0:01:37]} 18. Qxg4 {[%clk 0:02:02]}  g6 {[%clk 0:01:33]} 19. Qh4 {[%clk 0:02:00]} 1-0


[Site "https://www.chess.com"]

[Event "Titled Tuesday Blitz November 14 Early 2023"]
[White "Bettalli, Francesco"]
[Black "Rosen, Eric"]
[WhiteFideId "2816453"]
[BlackFideId "2032562"]
[WhiteElo "2543"]
[BlackElo "2761"]
[Result "1-0"]
[Round "10"]
[TimeControl "180+1"]
[Date "2023.11.14"]
[WhiteClock "0:01:55"]
[BlackClock "0:00:16"]
[Board "58"]

1. e4 {[%clk 0:02:52]}  c5 {[%clk 0:02:59]} 2. Nc3 {[%clk 0:02:52]}  e6 {[%clk 0:02:58]} 3. Nge2 {[%clk 0:02:51]}  Nc6 {[%clk 0:02:58]} 4. d4 {[%clk 0:02:52]}  cxd4 {[%clk 0:02:59]} 5. Nxd4 {[%clk 0:02:53]}  Qc7 {[%clk 0:02:59]} 6. Be3 {[%clk 0:02:52]}  a6 {[%clk 0:02:59]} 7. g4 {[%clk 0:02:52]}  Bb4 {[%clk 0:02:52]} 8. Nxc6 {[%clk 0:02:51]}  Qxc6 {[%clk 0:02:22]} 9. Qd4 {[%clk 0:02:50]}  Bxc3+ {[%clk 0:02:03]} 10. bxc3 {[%clk 0:02:51]}  f6 {[%clk 0:02:03]} 11. g5 {[%clk 0:02:51]}  e5 {[%clk 0:01:55]} 12. Qb4 {[%clk 0:02:37]}  d5 {[%clk 0:01:35]} 13. exd5 {[%clk 0:02:32]}  Qxd5 {[%clk 0:01:36]} 14. Rg1 {[%clk 0:02:32]}  Ne7 {[%clk 0:01:23]} 15. Bc4 {[%clk 0:02:23]}  Qf3 {[%clk 0:01:17]} 16. Be2 {[%clk 0:02:20]}  Qh3 {[%clk 0:01:13]} 17. gxf6 {[%clk 0:02:20]}  gxf6 {[%clk 0:01:06]} 18. Rg7 {[%clk 0:02:16]}  Nd5 {[%clk 0:00:30]} 19. Qd6 {[%clk 0:01:58]}  Be6 {[%clk 0:00:16]} 20. Bh5+ {[%clk 0:01:55]} 1-0


[Site "https://www.chess.com"]

[Event "Titled Tuesday Blitz November 14 Early 2023"]
[White "Ilkhomi, Jaloliddin"]
[Black "TomLiu777"]
[WhiteFideId "14700948"]
[WhiteElo "2702"]
[BlackElo "2542"]
[Result "1-0"]
[Round "10"]
[TimeControl "180+1"]
[Date "2023.11.14"]
[WhiteClock "0:01:44"]
[BlackClock "0:00:00"]
[Board "59"]

1. Nf3 {[%clk 0:03:00]}  Nf6 {[%clk 0:02:44]} 2. d4 {[%clk 0:02:59]}  c5 {[%clk 0:02:43]} 3. c3 {[%clk 0:02:59]}  e6 {[%clk 0:02:41]} 4. Bf4 {[%clk 0:02:59]}  Nc6 {[%clk 0:02:40]} 5. e3 {[%clk 0:02:59]}  Qb6 {[%clk 0:02:36]} 6. Qb3 {[%clk 0:02:57]}  d5 {[%clk 0:02:29]} 7. Nbd2 {[%clk 0:02:57]}  c4 {[%clk 0:02:29]} 8. Qc2 {[%clk 0:02:57]}  Nh5 {[%clk 0:02:18]} 9. Bg5 {[%clk 0:02:54]}  h6 {[%clk 0:02:16]} 10. Bh4 {[%clk 0:02:54]}  g5 {[%clk 0:02:06]} 11. Bg3 {[%clk 0:02:53]}  Nxg3 {[%clk 0:02:05]} 12. hxg3 {[%clk 0:02:54]}  Bg7 {[%clk 0:02:04]} 13. Be2 {[%clk 0:02:53]}  Bd7 {[%clk 0:01:59]} 14. e4 {[%clk 0:02:53]}  O-O-O {[%clk 0:01:55]} 15. b3 {[%clk 0:02:45]}  f5 {[%clk 0:01:33]} 16. e5 {[%clk 0:02:42]}  g4 {[%clk 0:01:29]} 17. Nh4 {[%clk 0:02:41]}  Nxd4 {[%clk 0:00:59]} 18. cxd4 {[%clk 0:02:38]}  Qxd4 {[%clk 0:01:00]} 19. Rd1 {[%clk 0:02:28]}  Bxe5 {[%clk 0:00:48]} 20. Ng6 {[%clk 0:02:19]}  Rhg8 {[%clk 0:00:42]} 21. Ne7+ {[%clk 0:02:18]}  Kb8 {[%clk 0:00:39]} 22. Nxg8 {[%clk 0:02:19]}  Rxg8 {[%clk 0:00:33]} 23. Nxc4 {[%clk 0:02:19]}  Qc3+ {[%clk 0:00:28]} 24. Qxc3 {[%clk 0:02:20]}  Bxc3+ {[%clk 0:00:28]} 25. Nd2 {[%clk 0:02:21]}  d4 {[%clk 0:00:25]} 26. O-O {[%clk 0:02:14]}  e5 {[%clk 0:00:25]} 27. Nb1 {[%clk 0:02:06]}  Bb4 {[%clk 0:00:21]} 28. a3 {[%clk 0:02:06]}  Bc5 {[%clk 0:00:20]} 29. b4 {[%clk 0:02:07]}  Bb6 {[%clk 0:00:20]} 30. Nd2 {[%clk 0:02:07]}  Ba4 {[%clk 0:00:19]} 31. Rc1 {[%clk 0:02:06]}  e4 {[%clk 0:00:17]} 32. Nc4 {[%clk 0:02:05]}  d3 {[%clk 0:00:16]} 33. Bd1 {[%clk 0:02:04]}  Bb5 {[%clk 0:00:14]} 34. Bb3 {[%clk 0:01:59]}  Rd8 {[%clk 0:00:11]} 35. Rfd1 {[%clk 0:01:58]}  Bxc4 {[%clk 0:00:09]} 36. Bxc4 {[%clk 0:01:57]}  e3 {[%clk 0:00:10]} 37. Rxd3 {[%clk 0:01:55]}  exf2+ {[%clk 0:00:09]} 38. Kf1 {[%clk 0:01:55]}  Re8 {[%clk 0:00:08]} 39. Bb5 {[%clk 0:01:55]}  Rh8 {[%clk 0:00:07]} 40. a4 {[%clk 0:01:53]}  a6 {[%clk 0:00:07]} 41. a5 {[%clk 0:01:52]}  Ba7 {[%clk 0:00:05]} 42. Bd7 {[%clk 0:01:50]}  h5 {[%clk 0:00:05]} 43. Bxf5 {[%clk 0:01:51]}  h4 {[%clk 0:00:05]} 44. gxh4 {[%clk 0:01:48]}  g3 {[%clk 0:00:04]} 45. Rxg3 {[%clk 0:01:47]}  Bd4 {[%clk 0:00:04]} 46. Rh3 {[%clk 0:01:44]}  Re8 {[%clk 0:00:00]} 47. h5 {[%clk 0:01:44]} 1-0


[Site "https://www.chess.com"]